bitfinex/quotes_BTCUSD_20250204
["timestamp","ask_amount","ask_price","bid_price","bid_amount"]
[1738644154487,0.00340284,100260.0,100250.0,0.50489083]
[1738644156260,0.00340284,100260.0,100250.0,0.63857814]
[1738644156475,0.00340284,100260.0,100250.0,0.50489083]
[1738644158008,0.00340284,100260.0,100250.0,0.51078655]
[1738644159469,0.00340284,100260.0,100250.0,0.63097978]
[1738644159680,0.00340284,100260.0,100250.0,0.49729247]
[1738644162294,0.00340284,100260.0,100250.0,0.47429247]
[1738644162668,0.00340284,100260.0,100250.0,0.44329706]
[1738644163687,0.1057879,100260.0,100250.0,0.44329706]
[1738644165573,0.4274879,100260.0,100250.0,0.44329706]
[1738644167447,0.5498879,100260.0,100250.0,0.30960975]
[1738644167885,0.2281879,100260.0,100250.0,0.30960975]
[1738644168032,0.2281879,100260.0,100250.0,0.15960975]
[1738644168293,0.2281879,100260.0,100250.0,0.30960975]
[1738644168449,0.2281879,100260.0,100250.0,0.15]
[1738644169356,0.3026019,100260.0,100240.0,0.15967872]
[1738644169700,0.22611243,100250.0,100240.0,0.0001068]
[1738644169905,0.54648506,100250.0,100240.0,0.0001068]
[1738644170128,0.54916447,100250.0,100240.0,0.0001068]
[1738644170361,2.04916447,100250.0,100240.0,0.1501068]
[1738644174765,0.54916447,100250.0,100240.0,0.1501068]
[1738644176127,0.54916447,100250.0,100240.0,0.2997468]
[1738644176547,0.50196447,100250.0,100240.0,0.43343411]
[1738644176749,0.32437941,100250.0,100240.0,0.43343411]
[1738644176956,0.00267941,100250.0,100240.0,0.45643411]
[1738644177131,0.00069921,100260.0,100250.0,0.172625]
[1738644177360,0.00069921,100260.0,100250.0,0.45763867]
[1738644177541,0.00069921,100260.0,100250.0,0.45631231]
[1738644181733,0.00069921,100260.0,100250.0,0.46596735]
[1738644181939,0.00069921,100260.0,100250.0,0.59965466]
[1738644182132,0.00069921,100260.0,100250.0,0.46596735]
[1738644182330,0.00069921,100260.0,100250.0,0.49696454]
[1738644183807,0.00069921,100260.0,100250.0,0.46596735]
[1738644184234,0.00069921,100260.0,100250.0,0.49696097]
[1738644184603,0.00069921,100260.0,100250.0,0.46596735]
[1738644185027,0.00053378,100260.0,100250.0,0.49695954]
[1738644185246,0.00053378,100260.0,100250.0,0.46596735]
[1738644187633,0.00053378,100260.0,100250.0,0.44296735]
[1738644187968,1.50053378,100260.0,100250.0,0.44296735]
[1738644188655,0.00053378,100260.0,100250.0,0.44296735]
[1738644189572,0.00053378,100260.0,100250.0,0.46596735]
[1738644191807,0.08363378,100260.0,100250.0,0.44296735]
[1738644192007,0.18601884,100260.0,100250.0,0.30928004]
[1738644192237,0.23561884,100260.0,100250.0,0.149625]
[1738644192653,0.3988,100250.0,100240.0,0.0001068]
[1738644192842,0.50118506,100250.0,100240.0,0.0001068]
[1738644194170,0.50118506,100250.0,100240.0,0.2997468]
[1738644194372,0.50118506,100250.0,100240.0,0.1497468]
[1738644194559,0.50118506,100250.0,100240.0,0.2997468]
[1738644194780,0.50118506,100250.0,100240.0,0.1501068]
[1738644194957,0.50118506,100250.0,100240.0,0.2997468]
[1738644198150,0.17948506,100250.0,100240.0,0.2997468]
[1738644198352,0.17948506,100250.0,100240.0,0.1501068]
[1738644198556,0.17948506,100250.0,100240.0,0.2997468]
[1738644199380,0.17948506,100250.0,100240.0,0.43343411]
[1738644200513,0.10238506,100250.0,100240.0,0.43343411]
[1738644201554,0.13313378,100260.0,100250.0,0.15]
[1738644201782,0.23551884,100260.0,100250.0,0.43331231]
[1738644201982,0.18591884,100260.0,100250.0,0.43331231]
[1738644202563,0.18591884,100260.0,100250.0,0.299625]
[1738644202770,0.18591884,100260.0,100250.0,0.15]
[1738644202977,0.33685721,100260.0,100250.0,0.15]
[1738644203299,0.38332984,100260.0,100250.0,0.15]
[1738644203497,0.23371884,100260.0,100250.0,0.15]
[1738644206774,1.73371884,100260.0,100250.0,0.15]
[1738644208236,1.73371884,100260.0,100250.0,0.43331231]
[1738644208987,1.73371884,100260.0,100250.0,0.299625]
[1738644211184,1.90845214,100260.0,100250.0,0.15]
[1738644211824,0.227025,100250.0,100240.0,0.0001068]
[1738644212074,0.37711006,100250.0,100240.0,0.0001068]
[1738644212941,0.67711006,100250.0,100240.0,0.0001068]
[1738644213187,0.22748506,100250.0,100240.0,0.0001068]
[1738644213383,0.23480506,100250.0,100240.0,0.2997468]
[1738644213585,0.23480506,100250.0,100240.0,0.1501068]
[1738644214332,0.23480506,100250.0,100240.0,0.2997468]
[1738644214695,0.23480506,100250.0,100240.0,0.1501068]
[1738644214903,0.23480506,100250.0,100240.0,0.2997468]
[1738644215115,0.10238506,100250.0,100240.0,0.43343411]
[1738644215920,0.07723378,100260.0,100240.0,0.43343411]
[1738644216123,0.10291884,100260.0,100250.0,0.43463884]
[1738644216388,0.10291884,100260.0,100250.0,0.43331231]
[1738644218212,0.00053378,100260.0,100250.0,0.43331231]
[1738644219157,0.32223378,100260.0,100250.0,0.43331231]
[1738644220701,0.3217093,100260.0,100250.0,0.43331231]
[1738644222159,0.3217093,100260.0,100250.0,0.3096225]
[1738644222160,0.42409436,100260.0,100250.0,0.3096225]
[1738644222397,0.54669436,100260.0,100250.0,0.299625]
[1738644223025,0.54669436,100260.0,100250.0,0.43331231]
[1738644223447,0.42409436,100260.0,100250.0,0.43331231]
[1738644226532,0.54709436,100260.0,100250.0,0.43331231]
[1738644227045,0.54709436,100260.0,100250.0,0.299625]
[1738644227250,2.04709436,100260.0,100250.0,0.299625]
[1738644227645,2.04709436,100260.0,100250.0,0.274625]
[1738644228060,1.72539436,100260.0,100250.0,0.274625]
[1738644229703,1.72539436,100260.0,100250.0,0.2747318]
[1738644230101,1.72561864,100260.0,100250.0,0.2747318]
[1738644230607,0.22561864,100260.0,100250.0,0.2747318]
[1738644231184,0.37522964,100260.0,100250.0,0.0001068]
[1738644233021,0.67522964,100260.0,100250.0,0.0001068]
[1738644233505,0.37522964,100260.0,100250.0,0.0001068]
[1738644234058,0.77772436,100260.0,100250.0,0.0001068]
[1738644235059,0.67522964,100260.0,100250.0,0.0001068]
[1738644237130,0.68422964,100260.0,100250.0,0.0001068]
[1738644237366,0.81791695,100260.0,100250.0,0.0001068]
[1738644238478,0.82691695,100260.0,100250.0,0.0001068]
[1738644238724,0.68422964,100260.0,100250.0,0.0001068]
[1738644239051,0.67522964,100260.0,100250.0,0.0001068]
[1738644239255,0.68422964,100260.0,100250.0,0.0001068]
[1738644239715,0.78135312,100260.0,100250.0,0.0001068]
[1738644239923,0.77967312,100260.0,100250.0,0.0001068]
[1738644240096,0.83779603,100260.0,100250.0,0.0001068]
[1738644240244,0.84679603,100260.0,100250.0,0.0001068]
[1738644240660,0.78867312,100260.0,100250.0,0.0001068]
[1738644241869,0.70054964,100260.0,100250.0,0.0001068]
[1738644242104,0.70222964,100260.0,100250.0,0.0001068]
[1738644242372,0.25261864,100260.0,100250.0,0.1497318]
[1738644242592,0.12961864,100260.0,100250.0,0.43341911]
[1738644242823,0.12961864,100260.0,100250.0,0.1497318]
[1738644243924,0.11161864,100260.0,100250.0,0.1497318]
[1738644244360,0.10261864,100260.0,100250.0,0.1497318]
[1738644244676,0.10261864,100260.0,100250.0,0.43341911]
[1738644245295,0.10261864,100260.0,100250.0,0.3007318]
[1738644245873,0.10261864,100260.0,100250.0,0.43441911]
[1738644246866,0.10261864,100260.0,100250.0,0.43341911]
[1738644248279,0.10261864,100260.0,100250.0,0.43441911]
[1738644251590,0.10261864,100260.0,100250.0,0.44437941]
[1738644252160,0.10261864,100260.0,100250.0,0.3106921]
[1738644252769,0.10261864,100260.0,100250.0,0.44437941]
[1738644254361,0.10261864,100260.0,100250.0,0.49216254]
[1738644254590,0.10261864,100260.0,100250.0,0.44437941]
[1738644259179,0.10261864,100260.0,100250.0,0.49217941]
[1738644259595,0.10261864,100260.0,100250.0,0.48217941]
[1738644259848,0.00023358,100260.0,100250.0,0.50517941]
[1738644261061,0.00023358,100260.0,100250.0,0.50417941]
[1738644263814,0.00023358,100260.0,100250.0,0.50428621]
[1738644264685,0.10261864,100260.0,100250.0,0.43348621]
[1738644265060,1.60261864,100260.0,100250.0,0.43348621]
[1738644265496,1.60261864,100260.0,100250.0,0.2997989]
[1738644265703,1.72681864,100260.0,100250.0,0.1398386]
[1738644265907,1.72681864,100260.0,100250.0,0.0001068]
[1738644266112,1.87642964,100260.0,100250.0,0.1501068]
[1738644266521,1.72681864,100260.0,100250.0,0.2997318]
[1738644266724,1.72681864,100260.0,100250.0,0.43341911]
[1738644266930,1.72681864,100260.0,100250.0,0.2997318]
[1738644269277,1.87642964,100260.0,100250.0,0.1501068]
[1738644270026,1.72681864,100260.0,100250.0,0.1501068]
[1738644270215,1.72681864,100260.0,100250.0,0.2997318]
[1738644270615,1.72681864,100260.0,100250.0,0.1501068]
[1738644270939,1.72681864,100260.0,100250.0,0.2997318]
[1738644271214,1.72681864,100260.0,100250.0,0.1501068]
[1738644271777,0.22681864,100260.0,100250.0,0.2997318]
[1738644273817,0.37642964,100260.0,100250.0,0.0001068]
[1738644277097,0.38141316,100260.0,100250.0,0.0001068]
[1738644277706,0.41828734,100260.0,100250.0,0.0001068]
[1738644278321,0.85197465,100260.0,100250.0,0.0001068]
[1738644278555,0.94948585,100260.0,100250.0,0.0001068]
[1738644279897,0.92968164,100260.0,100250.0,0.0001068]
[1738644280300,0.93947157,100260.0,100250.0,0.0001068]
[1738644280699,0.93219157,100260.0,100250.0,0.0001068]
[1738644280901,0.70328954,100260.0,100250.0,0.0001068]
[1738644281145,0.69600954,100260.0,100250.0,0.0001068]
[1738644281398,0.40332954,100260.0,100250.0,0.0001068]
[1738644281522,0.39353957,100260.0,100250.0,0.0001068]
[1738644281946,0.48166305,100260.0,100250.0,0.0001068]
[1738644282596,0.32226212,100260.0,100250.0,0.1497318]
[1738644282800,0.19806212,100260.0,100250.0,0.43341911]
[1738644283221,0.19806212,100260.0,100250.0,0.2997318]
[1738644283851,0.19074212,100260.0,100250.0,0.2997318]
[1738644284054,0.10261864,100260.0,100250.0,0.2997318]
[1738644285093,0.10261864,100260.0,100250.0,0.43341911]
[1738644285630,0.10261864,100260.0,100250.0,0.2997318]
[1738644285835,0.10261864,100260.0,100250.0,0.43341911]
[1738644287149,0.10261864,100260.0,100250.0,0.2997318]
[1738644287346,0.17771864,100260.0,100250.0,0.2997318]
[1738644289163,0.17771864,100260.0,100250.0,0.1501068]
[1738644289610,0.37741657,100260.0,100250.0,0.0001068]
[1738644289815,0.42241657,100260.0,100250.0,0.0001068]
[1738644290019,0.55610388,100260.0,100250.0,0.0001068]
[1738644290223,0.58582849,100260.0,100250.0,0.0001068]
[1738644290803,1.0025158,100260.0,100250.0,0.0001068]
[1738644291647,1.0098758,100260.0,100250.0,0.0001068]
[1738644292033,1.0188758,100260.0,100250.0,0.0001068]
[1738644292244,1.0205158,100260.0,100250.0,0.0001068]
[1738644292458,0.88518849,100260.0,100250.0,0.0001068]
[1738644292653,1.0188758,100260.0,100250.0,0.0001068]
[1738644292854,1.0278758,100260.0,100250.0,0.0001068]
[1738644293697,0.582625,100250.0,100240.0,0.0001068]
[1738644293909,1.07501826,100250.0,100240.0,0.0001068]
[1738644294973,1.08401826,100250.0,100240.0,0.0001068]
[1738644295183,1.09301826,100250.0,100240.0,0.0001068]
[1738644295335,1.08301826,100250.0,100240.0,0.0001068]
[1738644295535,0.225985,100210.0,100200.0,0.0001068]
[1738644295744,0.33573006,100210.0,100200.0,0.0001068]
[1738644296816,0.33573006,100210.0,100200.0,0.00057242]
[1738644297854,0.36406452,100210.0,100200.0,0.00057242]
[1738644298066,0.76941737,100210.0,100200.0,0.00057242]
[1738644299590,0.77906456,100210.0,100200.0,0.00057242]
[1738644301220,0.93906456,100210.0,100200.0,0.00057242]
[1738644301421,0.7403125,100210.0,100200.0,0.00057242]
[1738644301750,0.96399981,100210.0,100200.0,0.00057242]
[1738644301952,1.06649453,100210.0,100200.0,0.00057242]
[1738644302154,0.96649453,100210.0,100200.0,4.2e-07]
[1738644302359,0.95913453,100210.0,100200.0,4.2e-07]
[1738644302561,0.7493125,100210.0,100200.0,4.2e-07]
[1738644302759,0.8329525,100210.0,100200.0,4.2e-07]
[1738644303017,0.8403125,100210.0,100200.0,4.2e-07]
[1738644303374,0.7503125,100210.0,100200.0,4.2e-07]
[1738644303559,0.5499525,100210.0,100200.0,4.2e-07]
[1738644303758,0.70327725,100210.0,100200.0,4.2e-07]
[1738644304021,1.09845928,100210.0,100200.0,4.2e-07]
[1738644304209,1.09745928,100210.0,100200.0,4.2e-07]
[1738644304385,0.38591725,100210.0,100200.0,4.2e-07]
[1738644304589,0.69327725,100210.0,100200.0,4.2e-07]
[1738644304805,0.70163006,100210.0,100200.0,4.2e-07]
[1738644305012,0.57743006,100210.0,100200.0,4.2e-07]
[1738644305218,0.67992478,100210.0,100200.0,4.2e-07]
[1738644305617,0.57743006,100210.0,100200.0,4.2e-07]
[1738644305815,0.71111737,100210.0,100200.0,4.2e-07]
[1738644306591,2.07743006,100210.0,100200.0,4.2e-07]
[1738644306947,2.06843006,100210.0,100200.0,4.2e-07]
[1738644307568,2.07743006,100210.0,100200.0,4.2e-07]
[1738644307721,2.06843006,100210.0,100200.0,4.2e-07]
[1738644307951,2.05943006,100210.0,100200.0,4.2e-07]
[1738644308363,2.06843006,100210.0,100200.0,4.2e-07]
[1738644308707,2.07743006,100210.0,100200.0,4.2e-07]
[1738644308857,2.07743006,100210.0,100200.0,0.00010722]
[1738644309054,2.07765434,100210.0,100200.0,0.00010722]
[1738644310012,2.18014906,100210.0,100200.0,0.00010722]
[1738644310152,2.07765434,100210.0,100200.0,0.00010722]
[1738644310678,0.57765434,100210.0,100200.0,0.00010722]
[1738644310922,0.82004165,100210.0,100200.0,0.00010722]
[1738644311275,0.83804165,100210.0,100200.0,0.00010722]
[1738644311499,0.94053637,100210.0,100200.0,0.00010722]
[1738644311700,0.93153637,100210.0,100200.0,0.00010722]
[1738644311911,0.94053637,100210.0,100200.0,0.00010722]
[1738644312389,0.93153637,100210.0,100200.0,0.00010722]
[1738644312893,0.69535434,100210.0,100200.0,0.00010722]
[1738644313092,0.70435434,100210.0,100200.0,0.00010722]
[1738644314090,0.83804165,100210.0,100200.0,0.00010722]
[1738644314313,0.7410059,100210.0,100200.0,0.00010722]
[1738644314519,0.7510059,100210.0,100200.0,0.00010722]
[1738644314772,0.85350062,100210.0,100200.0,2.2e-07]
[1738644314949,1.14699793,100210.0,100200.0,2.2e-07]
[1738644315156,1.13699793,100210.0,100200.0,2.2e-07]
[1738644315788,1.12799793,100210.0,100200.0,2.2e-07]
[1738644316213,1.13699793,100210.0,100200.0,2.2e-07]
[1738644316414,1.12799793,100210.0,100200.0,2.2e-07]
[1738644316718,1.13699793,100210.0,100200.0,2.2e-07]
[1738644317172,1.12799793,100210.0,100200.0,2.2e-07]
[1738644317357,0.99431062,100210.0,100200.0,2.2e-07]
[1738644317556,1.01331062,100210.0,100200.0,2.2e-07]
[1738644318206,0.9108159,100210.0,100200.0,2.2e-07]
[1738644318405,0.9034559,100210.0,100200.0,2.2e-07]
[1738644318584,0.8410059,100210.0,100200.0,2.2e-07]
[1738644319443,0.8510059,100210.0,100200.0,2.2e-07]
[1738644319581,1.04450321,100210.0,100200.0,2.2e-07]
[1738644319812,1.24189793,100210.0,100200.0,2.2e-07]
[1738644320016,1.01331062,100210.0,100200.0,2.2e-07]
[1738644320263,1.00595062,100210.0,100200.0,2.2e-07]
[1738644320482,1.01331062,100210.0,100200.0,2.2e-07]
[1738644321337,1.14699793,100210.0,100200.0,2.2e-07]
[1738644321741,1.13699793,100210.0,100200.0,2.2e-07]
[1738644322112,1.34189793,100210.0,100200.0,2.2e-07]
[1738644322341,1.20821062,100210.0,100200.0,2.2e-07]
[1738644322515,0.149745,100170.0,100160.0,0.00018475]
[1738644322719,0.25953006,100170.0,100160.0,0.00023228]
[1738644322950,0.10978506,100170.0,100160.0,0.14999228]
[1738644323153,0.25953006,100170.0,100160.0,0.00023228]
[1738644324940,0.26451772,100170.0,100160.0,0.00023228]
[1738644325357,0.11477272,100170.0,100160.0,0.00023228]
[1738644325559,0.10737272,100170.0,100160.0,0.14999228]
[1738644325759,0.10737272,100170.0,100160.0,0.00023228]
[1738644325964,0.25711772,100170.0,100160.0,0.00023228]
[1738644326119,0.30353399,100170.0,100160.0,0.00023228]
[1738644326324,1.80353399,100170.0,100160.0,0.00023228]
[1738644328213,2.05312499,100170.0,100150.0,0.19893135]
[1738644328525,0.25214506,100160.0,100150.0,0.04925127]
[1738644329405,0.25214506,100160.0,100150.0,9.492e-05]
[1738644331281,0.30076433,100160.0,100150.0,9.492e-05]
[1738644331422,0.25214506,100160.0,100150.0,9.492e-05]
[1738644332877,0.10238506,100160.0,100150.0,0.28355723]
[1738644333030,0.10238506,100160.0,100150.0,9.492e-05]
[1738644333230,0.25214506,100160.0,100150.0,9.492e-05]
[1738644333472,0.10238506,100160.0,100150.0,0.14986992]
[1738644333675,0.10238506,100160.0,100150.0,0.28355723]
[1738644334038,0.00498766,100170.0,100160.0,0.14976]
[1738644334236,0.19532189,100170.0,100160.0,0.51607496]
[1738644334453,0.19532189,100170.0,100160.0,0.55984731]
[1738644335486,0.09293683,100170.0,100160.0,0.55984731]
[1738644335686,0.09293683,100170.0,100160.0,0.72653462]
[1738644336279,0.09293683,100170.0,100160.0,0.83891968]
[1738644336280,0.04293683,100170.0,100160.0,0.83891968]
[1738644336478,0.0222462,100210.0,100200.0,0.1497]
[1738644336685,0.12463126,100210.0,100200.0,0.28338731]
[1738644337144,0.14124015,100210.0,100200.0,0.28338731]
[1738644337351,0.14124015,100210.0,100200.0,0.1497]
[1738644337917,0.14128759,100210.0,100200.0,0.1497]
[1738644338123,0.14128759,100210.0,100200.0,0.1507]
[1738644338880,0.14128759,100210.0,100200.0,0.28571452]
[1738644339058,0.1246787,100210.0,100200.0,0.28438731]
[1738644339421,0.10265678,100210.0,100200.0,0.28438731]
[1738644340220,0.10265678,100210.0,100200.0,0.28338731]
[1738644341419,0.00027172,100210.0,100200.0,0.56707462]
[1738644341618,0.00027172,100210.0,100200.0,0.64887462]
[1738644342039,0.00027172,100210.0,100200.0,0.67187462]
[1738644342520,0.00023172,100210.0,100200.0,0.67187462]
[1738644342723,0.00023172,100210.0,100200.0,0.68165915]
[1738644343511,0.00023172,100210.0,100200.0,0.68465915]
[1738644343671,0.00023172,100210.0,100200.0,0.68565915]
[1738644343868,7.2e-07,100210.0,100200.0,0.80804421]
[1738644344096,0.00022428,100260.0,100250.0,0.149625]
[1738644344261,0.10308486,100260.0,100250.0,0.2846388]
[1738644344467,0.10308486,100260.0,100250.0,0.28331231]
[1738644345334,0.10308486,100260.0,100250.0,0.41699962]
[1738644345874,0.10308486,100260.0,100250.0,0.28331231]
[1738644348017,0.0006998,100260.0,100250.0,0.41699962]
[1738644348541,0.0006998,100260.0,100250.0,0.28331231]
[1738644349005,0.0006998,100260.0,100250.0,0.29324786]
[1738644349426,0.0006998,100260.0,100250.0,0.42693517]
[1738644350023,0.0006998,100260.0,100250.0,0.57693517]
[1738644353092,0.0006998,100260.0,100250.0,0.60866602]
[1738644353710,0.0006998,100260.0,100250.0,0.57693517]
[1738644353896,0.0006998,100260.0,100250.0,0.60866602]
[1738644354048,0.0006998,100260.0,100250.0,0.57693517]
[1738644354284,0.00022428,100280.0,100270.0,0.149596]
[1738644354660,0.00036684,100280.0,100270.0,0.45002745]
[1738644354840,0.00036684,100280.0,100270.0,0.44870147]
[1738644355802,0.00036684,100280.0,100270.0,0.41697062]
[1738644356408,0.00036684,100280.0,100270.0,0.44870147]
[1738644357228,0.00036684,100280.0,100270.0,0.41697062]
[1738644357437,0.00036684,100280.0,100270.0,0.28328331]
[1738644360372,0.00027698,100280.0,100270.0,0.28328331]
[1738644361145,0.10266204,100280.0,100270.0,0.149596]
[1738644361980,0.30114604,100280.0,100260.0,0.149598]
[1738644362175,0.10238506,100270.0,100250.0,0.68227931]
[1738644362398,0.18448506,100270.0,100260.0,0.15]
[1738644362972,0.149611,100260.0,100240.0,0.48282731]
[1738644363241,0.10238506,100250.0,100240.0,0.33319931]
[1738644365004,0.10238506,100250.0,100240.0,0.13368731]
[1738644365211,0.10238506,100250.0,100230.0,0.349171]
[1738644365475,0.18118506,100250.0,100230.0,0.548706]
[1738644365689,0.18118506,100250.0,100240.0,0.14964]
[1738644366317,0.18118506,100250.0,100230.0,0.49293164]
[1738644366515,0.048,100230.0,100210.0,0.13379411]
[1738644366740,0.048,100230.0,100220.0,0.14967]
[1738644366994,0.197655,100230.0,100210.0,0.3493448]
[1738644367228,0.10238506,100220.0,100210.0,0.24745393]
[1738644367468,0.10238506,100220.0,100210.0,0.38114124]
[1738644367755,0.10238506,100220.0,100210.0,0.0001068]
[1738644367995,0.10238506,100220.0,100210.0,0.00058232]
[1738644368979,1.60238506,100220.0,100210.0,0.00058232]
[1738644369228,1.75205506,100220.0,100210.0,0.00058232]
[1738644369893,2.43463709,100220.0,100210.0,0.00058232]
[1738644370098,2.58463709,100220.0,100210.0,0.00058232]
[1738644370699,2.34845506,100220.0,100210.0,0.00058232]
[1738644370897,0.84845506,100220.0,100210.0,0.00058232]
[1738644371863,0.85609506,100220.0,100210.0,0.00058232]
[1738644372492,0.86509506,100220.0,100210.0,0.00058232]
[1738644373046,0.1212,100190.0,100170.0,0.35913715]
[1738644373334,0.10238506,100180.0,100170.0,0.20944659]
[1738644373885,0.10238506,100180.0,100170.0,4.744e-05]
[1738644374088,0.25211506,100180.0,100170.0,4.744e-05]
[1738644374539,0.10238506,100180.0,100170.0,4.744e-05]
[1738644374714,0.10238506,100180.0,100170.0,0.15112005]
[1738644374921,0.10238506,100180.0,100170.0,0.35043056]
[1738644375595,0.10238506,100180.0,100170.0,4.744e-05]
[1738644375804,0.10238506,100180.0,100170.0,0.14979244]
[1738644378174,0.25211506,100180.0,100170.0,4.744e-05]
[1738644378771,0.10238506,100180.0,100170.0,0.14979244]
[1738644379021,0.10238506,100180.0,100170.0,0.14989924]
[1738644379545,0.25211506,100180.0,100170.0,0.00015424]
[1738644379895,0.10238506,100180.0,100170.0,0.00015424]
[1738644380089,0.25211506,100180.0,100170.0,0.00015424]
[1738644380317,0.10238506,100180.0,100170.0,0.00015424]
[1738644380521,0.10238506,100180.0,100170.0,0.14989924]
[1738644381711,0.10238506,100180.0,100170.0,0.00015424]
[1738644382278,0.25344243,100180.0,100170.0,0.00015424]
[1738644382480,0.10238506,100180.0,100170.0,0.00015424]
[1738644382767,0.25344243,100180.0,100170.0,0.00015424]
[1738644382948,0.25211506,100180.0,100170.0,0.00015424]
[1738644384162,0.10238506,100180.0,100170.0,0.00015424]
[1738644384362,0.25211506,100180.0,100170.0,0.00015424]
[1738644384563,0.10238506,100180.0,100170.0,0.00015424]
[1738644384765,0.25211506,100180.0,100170.0,0.00015424]
[1738644385278,0.25211506,100180.0,100170.0,0.01011424]
[1738644385828,0.10238506,100180.0,100170.0,0.01011424]
[1738644386251,0.25211506,100180.0,100170.0,0.01011424]
[1738644386681,0.25979506,100180.0,100170.0,0.01011424]
[1738644387156,1.08594688,100180.0,100170.0,0.01011424]
[1738644387328,1.1884416,100180.0,100170.0,0.01011424]
[1738644387480,0.14976,100160.0,100150.0,0.0001069]
[1738644387687,0.37374506,100160.0,100150.0,0.00020182]
[1738644387917,0.69674506,100160.0,100150.0,0.00020182]
[1738644388116,0.22398506,100160.0,100150.0,0.00020182]
[1738644388330,0.22398506,100160.0,100150.0,0.14997682]
[1738644388533,0.14738506,100160.0,100150.0,0.14997682]
[1738644389137,0.10238506,100160.0,100150.0,0.14997682]
[1738644389572,0.10238506,100160.0,100150.0,0.5019428]
[1738644389772,0.10238506,100160.0,100150.0,0.50061494]
[1738644390345,0.0463,100180.0,100170.0,0.149745]
[1738644390562,0.14868506,100180.0,100170.0,0.149745]
[1738644391415,0.29841506,100180.0,100160.0,0.349412]
[1738644391634,0.10238506,100170.0,100150.0,0.68338058]
[1738644391843,0.10238506,100170.0,100160.0,0.14976]
[1738644392354,0.25213406,100170.0,100150.0,0.49965182]
[1738644392561,0.61955167,100170.0,100150.0,0.34967182]
[1738644392756,0.33333406,100170.0,100150.0,0.54936482]
[1738644392898,0.33333406,100170.0,100150.0,0.34966682]
[1738644393113,0.25213406,100170.0,100150.0,0.14997382]
[1738644393326,0.25213406,100170.0,100150.0,0.00020182]
[1738644393327,0.37987243,100160.0,100150.0,0.00020182]
[1738644393557,0.37854506,100160.0,100150.0,0.00020182]
[1738644393742,0.40778344,100160.0,100150.0,0.00020182]
[1738644393938,0.25802344,100160.0,100150.0,0.00020182]
[1738644394154,0.40778344,100160.0,100150.0,0.00020182]
[1738644394354,0.25802344,100160.0,100150.0,0.00020182]
[1738644394752,0.25802344,100160.0,100150.0,0.14997682]
[1738644395410,0.14758506,100160.0,100150.0,0.00020182]
[1738644395853,0.29867243,100160.0,100150.0,0.00020182]
[1738644396060,0.29734506,100160.0,100150.0,0.00020182]
[1738644397456,0.64958344,100160.0,100150.0,0.00020182]
[1738644398079,0.7833822,100160.0,100150.0,0.00020182]
[1738644398241,0.7923822,100160.0,100150.0,0.00020182]
[1738644398448,0.90387692,100160.0,100150.0,0.00020182]
[1738644398626,0.77007816,100160.0,100150.0,0.00020182]
[1738644399475,0.74083978,100160.0,100150.0,0.00020182]
[1738644399717,0.63834506,100160.0,100150.0,0.00020182]
[1738644400711,0.71644506,100160.0,100150.0,0.00020182]
[1738644401670,0.69344506,100160.0,100150.0,0.00020182]
[1738644401880,0.24368506,100160.0,100150.0,0.14997682]
[1738644402076,0.16558506,100160.0,100150.0,0.14997682]
[1738644402282,0.16558506,100160.0,100150.0,0.00020182]
[1738644402697,0.31534506,100160.0,100150.0,0.00020182]
[1738644403355,0.63834506,100160.0,100150.0,0.00020182]
[1738644403902,2.13834506,100160.0,100150.0,0.00020182]
[1738644404106,2.31233978,100160.0,100150.0,0.00020182]
[1738644404410,2.22919917,100160.0,100150.0,0.00020182]
[1738644405529,2.23819917,100160.0,100150.0,0.00020182]
[1738644405736,2.22919917,100160.0,100150.0,0.00020182]
[1738644405978,2.22019917,100160.0,100150.0,0.00020182]
[1738644406200,2.22919917,100160.0,100150.0,0.00020182]
[1738644406367,2.23819917,100160.0,100150.0,0.00020182]
[1738644406797,2.34069389,100160.0,100150.0,0.00020182]
[1738644407422,2.23819917,100160.0,100150.0,0.00020182]
[1738644408209,2.21884506,100160.0,100150.0,0.00020182]
[1738644408438,2.30675898,100160.0,100150.0,0.00020182]
[1738644409720,2.31643577,100160.0,100150.0,0.00020182]
[1738644410963,2.22852185,100160.0,100150.0,0.00020182]
[1738644411424,2.24465991,100160.0,100150.0,0.00020182]
[1738644411563,2.25241991,100160.0,100150.0,0.00020182]
[1738644411763,2.23628185,100160.0,100150.0,0.00020182]
[1738644413494,2.38628185,100160.0,100150.0,0.00020182]
[1738644413697,2.41552985,100160.0,100150.0,0.00020182]
[1738644413876,2.62639621,100160.0,100150.0,0.00020182]
[1738644414097,2.42552985,100160.0,100150.0,0.00020182]
[1738644414307,2.49342158,100160.0,100150.0,0.00020182]
[1738644414504,2.39628185,100160.0,100150.0,0.00020182]
[1738644414721,2.42598456,100160.0,100150.0,0.00020182]
[1738644415305,2.38628185,100160.0,100150.0,0.00020182]
[1738644415923,2.39628185,100160.0,100150.0,0.00020182]
[1738644416280,2.49877657,100160.0,100150.0,0.00020182]
[1738644417403,2.37852185,100160.0,100150.0,0.00020182]
[1738644417621,2.38632185,100160.0,100150.0,0.00020182]
[1738644418020,2.36332185,100160.0,100150.0,0.00020182]
[1738644418227,2.38313331,100160.0,100150.0,0.00020182]
[1738644419669,2.36565652,100160.0,100150.0,0.00020182]
[1738644419903,0.77310506,100160.0,100150.0,0.00020182]
[1738644420638,0.76410506,100160.0,100150.0,0.00020182]
[1738644420888,0.41138506,100160.0,100150.0,0.00020182]
[1738644421156,0.56114506,100160.0,100150.0,0.00020182]
[1738644421448,0.57014506,100160.0,100150.0,0.00020182]
[1738644421832,0.12038506,100160.0,100150.0,0.00020182]
[1738644422007,0.27014506,100160.0,100150.0,0.00020182]
[1738644422253,0.26114506,100160.0,100150.0,0.00020182]
[1738644422512,0.11138506,100160.0,100150.0,0.00020182]
[1738644422753,0.26114506,100160.0,100150.0,0.00020182]
[1738644422996,0.11138506,100160.0,100150.0,0.00020182]
[1738644423235,0.26114506,100160.0,100150.0,0.00020182]
[1738644423467,0.11138506,100160.0,100150.0,0.00020182]
[1738644423831,0.26114506,100160.0,100150.0,0.00020182]
[1738644424430,0.56114506,100160.0,100150.0,0.00020182]
[1738644424884,0.57652141,100160.0,100150.0,0.00020182]
[1738644425197,0.11776141,100160.0,100150.0,0.00020182]
[1738644425432,1.61776141,100160.0,100150.0,0.00020182]
[1738644425666,0.13576141,100160.0,100150.0,0.14997682]
[1738644426121,1.63576141,100160.0,100150.0,0.28385983]
[1738644426319,0.12676141,100160.0,100150.0,0.43385983]
[1738644426472,0.11138506,100160.0,100150.0,0.43385983]
[1738644426889,0.10238506,100160.0,100150.0,0.43385983]
[1738644429246,0.10238506,100160.0,100150.0,0.44355972]
[1738644430991,0.10238506,100160.0,100150.0,0.15020182]
[1738644431200,0.10238506,100160.0,100150.0,0.00020182]
[1738644431404,0.10238506,100160.0,100150.0,0.14997682]
[1738644431603,1.60238506,100160.0,100150.0,0.14997682]
[1738644431802,1.60238506,100160.0,100150.0,0.28385983]
[1738644432446,1.60238506,100160.0,100150.0,0.14997682]
[1738644433025,1.60238506,100160.0,100150.0,0.00020182]
[1738644433286,0.10238506,100160.0,100150.0,0.00020182]
[1738644433720,0.10238506,100160.0,100150.0,0.14997682]
[1738644435990,0.10238506,100160.0,100150.0,0.28385983]